bitfinex-derivatives/quotes_ETHF0:USTF0_20250309
["timestamp","ask_amount","ask_price","bid_price","bid_amount"]
[1741553165046,0.6242,2048.5,2048.1,0.60964473]
[1741553165248,0.97654,2048.2,2048.1,0.60964473]
[1741553165558,0.6242,2048.5,2048.1,0.60964473]
[1741553165746,0.97646,2048.4,2048.1,1.58618473]
[1741553165945,0.9765,2048.3,2048.1,1.58618473]
[1741553166145,0.6242,2048.5,2048.2,1.58617473]
[1741553166355,0.97649,2048.3,2048.2,0.60964473]
[1741553168753,0.97654,2048.2,2048.1,0.60964473]
[1741553169251,0.97659,2048.1,2048.0,2.61e-06]
[1741553169448,4.81189,2048.1,2048.0,2.61e-06]
[1741553169654,8.81189,2048.1,2048.0,2.61e-06]
[1741553170256,4.81189,2048.1,2048.0,2.61e-06]
[1741553170453,8.81189,2048.1,2048.0,2.61e-06]
[1741553170754,9.42589,2048.1,2048.0,2.61e-06]
[1741553171164,9.42589,2048.1,2047.0,3.2078]
[1741553171165,0.97707,2047.1,2047.0,3.2078]
[1741553171458,0.97721,2046.8,2046.7,3.2078]
[1741553172057,0.97739,2046.5,2046.3,0.6467]
[1741553172256,0.97733,2046.6,2046.3,1.62414]
[1741553172457,0.98465261,2046.6,2046.3,1.62414]
[1741553172656,0.97735,2046.5,2046.3,0.6467]
[1741553172855,0.00732261,2046.6,2046.3,0.6467]
[1741553173063,0.98464261,2046.6,2046.3,1.62412]
[1741553173259,0.9774,2046.5,2046.3,0.6467]
[1741553173460,0.98464261,2046.6,2046.3,1.62412]
[1741553174261,0.98464261,2046.6,2046.4,0.9774]
[1741553174462,0.00732261,2046.6,2046.5,0.97735]
[1741553174666,0.98463261,2046.6,2046.4,3.2078]
[1741553175363,0.98465261,2046.6,2046.3,0.6467]
[1741553175565,0.9774,2046.4,2046.2,0.63792261]
[1741553175860,0.97745,2046.3,2046.2,0.00732261]
[1741553177964,0.97745,2046.3,2046.2,2.61e-06]
[1741553177965,1.63735,2046.3,2046.2,2.61e-06]
[1741553178766,5.63735,2046.3,2046.2,2.61e-06]
[1741553179459,1.63735,2046.3,2046.2,2.61e-06]
[1741553181368,5.63735,2046.3,2046.2,2.61e-06]
[1741553181564,6.29045,2046.3,2046.2,2.61e-06]
[1741553182668,9.88945,2046.3,2046.2,2.61e-06]
[1741553185369,5.88945,2046.3,2046.2,2.61e-06]
[1741553186156,9.88945,2046.3,2046.2,2.61e-06]
[1741553189563,5.88945,2046.3,2046.2,2.61e-06]
[1741553189763,9.88945,2046.3,2046.2,2.61e-06]
[1741553190369,1.63735,2046.3,2046.2,2.61e-06]
[1741553190671,3.98635,2046.3,2046.2,2.61e-06]
[1741553190873,1.63735,2046.3,2046.2,2.61e-06]
[1741553191568,0.97745,2046.3,2046.2,2.61e-06]
[1741553192675,2.349,2046.4,2046.2,2.61e-06]
[1741553192869,0.97745,2046.3,2046.2,2.61e-06]
[1741553199372,8.57645,2046.3,2046.2,2.61e-06]
[1741553200376,2.44415,2045.9,2045.3,0.60527811]
[1741553200581,0.97792,2045.4,2045.3,0.60527811]
[1741553201177,0.97785,2045.5,2045.3,0.60527811]
[1741553201478,0.97788,2045.4,2045.3,0.60527811]
[1741553201680,0.97788,2045.4,2045.2,0.00732261]
[1741553201875,3.21512261,2045.6,2045.2,0.00732261]
[1741553202077,0.97788,2045.4,2045.3,0.60670956]
[1741553209873,0.00732261,2045.6,2045.5,0.97783]
[1741553210181,2.349,2046.0,2045.5,0.60670956]
[1741553210477,0.9777,2045.8,2045.6,0.97775]
[1741553210686,0.9777,2045.8,2045.7,0.6508]
[1741553210885,0.9777,2045.8,2045.7,1.25750956]
[1741553211382,2.44401,2046.0,2045.9,0.97764]
[1741553211383,0.00732261,2046.0,2045.9,0.97764]
[1741553211580,0.97733,2046.6,2046.4,0.97739]
[1741553211780,0.9773,2046.6,2046.5,0.6241]
[1741553212085,0.9773,2046.6,2046.5,1.23080956]
[1741553214475,0.9773,2046.6,2046.5,0.60670956]
[1741553215979,3.21512261,2046.8,2046.5,0.60670956]
[1741553216287,0.00732261,2046.8,2046.7,0.97726]
[1741553216484,0.00732261,2046.8,2046.6,2.89410956]
[1741553216789,0.00732261,2046.8,2046.7,0.97726]
[1741553216981,2.349,2047.4,2046.7,0.60670956]
[1741553217285,2.349,2047.4,2046.8,0.60670956]
[1741553217488,0.97708,2047.1,2046.8,4.79168956]
[1741553217684,2.349,2047.4,2046.9,0.60670956]
[1741553217886,4.546,2047.5,2046.9,0.60670956]
[1741553218088,3.2078,2047.5,2046.9,2.95470956]
[1741553218284,0.00732261,2047.4,2047.0,0.60670956]
[1741553218586,0.98428261,2047.4,2047.1,4.18484]
[1741553218789,0.00732261,2047.4,2047.1,4.85324]
[1741553218984,0.00732261,2047.4,2047.2,0.60670956]
[1741553219178,0.97697,2047.3,2047.2,0.60670956]
[1741553219580,0.97707,2047.1,2047.0,0.60670956]
[1741553219786,0.97706,2047.2,2047.0,0.60670956]
[1741553220192,0.00732261,2047.4,2047.0,0.60670956]
[1741553220487,0.97699,2047.3,2047.0,4.79158956]
[1741553220693,0.98426261,2047.4,2047.2,0.977]
[1741553221086,0.97697,2047.3,2047.1,0.60670956]
[1741553221596,0.00732261,2047.4,2047.2,1.58370956]
[1741553221888,3.2078,2048.1,2047.4,2.44231]
[1741553222079,3.2078,2048.1,2047.7,3.2078]
[1741553222284,3.2078,2048.1,2048.0,0.97664]
[1741553222490,2.44112,2048.4,2047.7,3.2078]
[1741553222685,0.97673,2047.8,2047.7,3.2078]
[1741553223285,3.2078,2048.1,2047.5,0.00732261]
[1741553223586,0.97683,2047.6,2047.5,0.00732261]
[1741553223790,2.4416,2048.0,2047.5,0.00732261]
[1741553223990,0.97683,2047.6,2047.5,0.00732261]
[1741553224582,0.97683,2047.6,2047.1,3.81450956]
[1741553224583,2.347,2047.6,2047.1,0.60670956]
[1741553225084,0.97702,2047.2,2047.0,0.97711]
[1741553225383,2.347,2047.6,2046.8,7.4525]
[1741553225592,0.97694,2047.4,2047.2,0.97698]
[1741553225895,0.97702,2047.2,2047.1,3.2078]
[1741553226486,0.00732261,2047.4,2047.1,3.2078]
[1741553226790,0.97702,2047.2,2047.1,3.2078]
[1741553226990,3.21512261,2047.4,2047.0,0.00732261]
[1741553227190,0.97699,2047.3,2047.0,0.98440261]
[1741553227393,0.98426261,2047.4,2047.0,0.00732261]
[1741553227589,0.97697,2047.3,2047.1,0.97704]
[1741553227797,0.00732261,2047.4,2047.0,0.98441261]
[1741553227989,0.00732261,2047.4,2047.0,0.00732261]
[1741553228187,0.97699,2047.3,2047.1,0.97705]
[1741553228594,0.00732261,2047.4,2047.0,3.21512261]
[1741553229092,0.00732261,2047.4,2047.3,0.97697]
[1741553229300,0.00732261,2047.4,2047.0,3.21512261]
[1741553229490,0.98426261,2047.4,2047.2,0.97698]
[1741553229887,0.00732261,2047.4,2047.0,3.21512261]
[1741553230091,0.97707,2047.1,2047.0,3.21512261]
[1741553230293,0.97707,2047.1,2047.0,0.00732261]
[1741553230494,0.97707,2047.1,2046.4,0.60670956]
[1741553230495,0.97735,2046.5,2046.4,0.60670956]
[1741553230699,0.9774,2046.4,2046.3,3.2078]
[1741553230998,5.65123,2046.5,2046.0,3.2078]
[1741553231197,0.6544,2046.4,2045.9,0.97761]
[1741553231394,3.09797,2046.4,2045.8,5.296]
[1741553231595,0.97764,2045.9,2045.6,10.10465]
[1741553231798,0.97764,2045.9,2045.6,7.15565]
[1741553232006,3.2078,2046.2,2045.6,6.1779]
[1741553232196,0.97766,2045.9,2045.6,7.15566]
[1741553232397,0.97766,2045.9,2045.6,4.18556]
[1741553232800,0.97762,2046.0,2045.7,0.97772]
[1741553232998,3.2078,2046.2,2045.6,3.2078]
[1741553233396,2.35432261,2046.3,2045.9,3.2078]
[1741553233604,0.97759,2046.0,2045.9,3.2078]
[1741553233805,0.97759,2046.0,2045.6,3.6622]
[1741553233806,0.97749,2046.2,2045.8,3.2078]
[1741553234000,2.35432261,2046.3,2045.8,3.2078]
[1741553234196,3.33180261,2046.3,2046.0,0.97756]
[1741553234405,0.9775,2046.2,2046.0,0.97756]
[1741553234707,0.9775,2046.2,2045.8,3.2078]
[1741553234896,2.35432261,2046.3,2045.8,3.2078]
[1741553235102,0.00732261,2046.3,2046.2,0.97749]
[1741553235303,3.2078,2046.9,2046.2,4.2642]
[1741553235512,3.2078,2046.9,2046.2,7.472]
[1741553235708,0.97726,2046.7,2046.5,0.97732]
[1741553235905,0.97734,2046.6,2046.2,7.472]
[1741553236095,2.44309,2046.8,2046.2,7.472]
[1741553236297,3.10633,2046.7,2046.2,4.2642]
[1741553236503,0.97745,2046.3,2046.2,4.2642]
[1741553236703,0.67042261,2046.7,2046.2,0.6399]
[1741553236907,0.97754,2046.1,2046.0,0.625]
[1741553237304,0.97754,2046.1,2045.9,5.5548]
[1741553237305,0.97759,2046.0,2045.9,3.2078]
[1741553237501,3.2078,2046.2,2045.8,2.949]
[1741553237706,2.44363,2046.3,2045.8,2.949]
[1741553237908,3.2078,2046.3,2045.8,2.949]
[1741553238107,0.97756,2046.1,2046.0,3.2078]
[1741553238507,3.2078,2046.3,2045.7,6.1947]
[1741553238799,0.97761,2046.0,2045.7,7.17242]
[1741553239003,5.65147,2046.3,2045.7,6.1947]
[1741553239205,0.97769,2045.8,2045.7,5.5548]
[1741553239507,0.6142,2046.2,2045.7,3.2078]
[1741553239704,0.97765,2045.9,2045.7,3.2078]
[1741553239903,0.97763,2046.0,2045.7,4.18552]
[1741553240306,0.6142,2046.2,2045.7,3.2078]
[1741553240506,0.97778,2045.6,2045.5,0.61403217]
[1741553241013,0.97775,2045.7,2045.5,0.00732261]
[1741553241709,0.9777,2045.8,2045.6,0.97777]
[1741553241912,0.97778,2045.7,2045.5,0.00732261]
[1741553242301,4.4989,2046.1,2045.5,0.00732261]
[1741553242609,1.2911,2046.1,2045.7,3.2078]
[1741553242804,0.97769,2045.8,2045.7,3.2078]
[1741553243714,4.4989,2046.1,2045.5,0.00732261]
[1741553243907,0.97778,2045.6,2045.5,0.00732261]
[1741553248710,0.643,2045.7,2045.5,0.00732261]
[1741553248915,0.23712499,2994.3,2045.5,0.00732261]
[1741553248916,2.348,2045.9,2045.5,0.00732261]
[1741553249107,0.97778,2045.6,2045.5,0.00732261]
[1741553250605,0.97774,2045.7,2045.5,0.98512261]
[1741553250806,0.97778,2045.6,2045.5,0.00732261]
[1741553252315,2.348,2045.9,2045.5,0.00732261]
[1741553252511,0.97775,2045.7,2045.5,0.98512261]
[1741553252712,2.348,2045.9,2045.5,0.00732261]
[1741553252906,0.6117,2046.4,2046.2,0.97749]
[1741553253106,0.655,2046.6,2046.0,3.2078]
[1741553253306,0.655,2046.6,2046.3,3.2078]
[1741553253513,3.8628,2046.6,2046.0,0.6312]
[1741553254110,0.97754,2046.1,2046.0,0.6312]
[1741553255317,0.655,2046.6,2046.0,0.6312]
[1741553255509,0.655,2046.6,2045.9,0.60418695]
[1741553255510,0.97759,2046.0,2045.9,0.60418695]
[1741553255709,3.32559,2046.0,2045.9,0.60418695]
[1741553256111,0.97778,2045.6,2045.5,0.63722261]
[1741553257016,0.97778,2045.6,2045.5,0.00732261]
[1741553257320,3.32578,2045.6,2045.5,0.00732261]
[1741553257719,2.348,2045.6,2045.5,0.98515261]
[1741553257920,3.32578,2045.6,2045.5,3.21512261]
[1741553258219,2.348,2045.6,2045.5,3.21512261]
[1741553258416,3.32578,2045.6,2045.5,3.21512261]
[1741553259523,2.348,2045.6,2045.5,3.21512261]
[1741553259818,3.32578,2045.6,2045.5,3.21512261]
[1741553260019,0.97778,2045.6,2045.5,3.81930956]
[1741553263014,0.97778,2045.6,2045.5,3.21512261]
[1741553263722,0.97778,2045.6,2045.5,3.82341988]
[1741553263919,5.5558,2045.9,2045.5,3.82341988]
[1741553264120,0.6125,2046.0,2045.9,0.97764]
[1741553264325,2.348,2046.5,2046.3,0.97742]
[1741553264621,0.6547,2046.5,2046.1,3.2078]
[1741553264823,0.6547,2046.5,2046.3,0.97741]
[1741553265023,0.97741,2046.4,2046.2,1.58577727]
[1741553265523,0.6294,2046.6,2046.3,0.60829727]
[1741553265820,0.9774,2046.4,2046.3,0.60829727]
[1741553266624,3.2078,2046.6,2046.1,0.60829727]
[1741553266625,0.97749,2046.2,2046.1,0.60829727]
[1741553268522,2.347,2046.6,2046.1,7.81609727]
[1741553268717,0.97732,2046.6,2046.1,3.81609727]
[1741553269230,0.00732261,2046.7,2046.2,0.60829727]
[1741553269428,0.97734,2046.6,2046.4,0.97739]
[1741553269722,0.97733,2046.6,2046.4,0.97738]
[1741553269926,0.00732261,2046.7,2046.6,0.9773]
[1741553270833,0.00732261,2046.7,2046.6,1.58408256]
[1741553271723,0.97708,2047.1,2047.0,0.9771]
[1741553271922,0.97707,2047.1,2046.9,3.2078]
[1741553272128,0.97707,2047.1,2047.0,0.97709]
[1741553272328,0.97711,2047.0,2046.9,3.2078]
[1741553273027,0.00732261,2047.2,2047.1,0.97707]
[1741553273430,0.00732261,2047.2,2047.1,1.60237]
[1741553273923,0.00732261,2047.2,2047.1,2.20793245]
[1741553274428,0.00732261,2047.2,2047.1,1.60237]
[1741553276036,0.00732261,2047.2,2047.0,0.6613]
[1741553276226,0.97711,2047.0,2046.9,3.81336245]
[1741553276420,0.97711,2047.0,2046.9,0.60556245]
[1741553276830,0.97716,2046.9,2046.8,2.949]
[1741553277530,0.61982261,2047.2,2046.8,6.949]
[1741553277729,0.00732261,2047.2,2047.1,0.97707]
[1741553278435,0.98434261,2047.2,2047.1,0.97707]
[1741553278635,0.98434261,2047.2,2047.0,3.8777]
[1741553278828,0.98434261,2047.2,2047.1,0.97707]
[1741553279631,0.00732261,2047.2,2047.1,0.97707]
[1741553279828,0.00732261,2047.2,2047.0,3.8777]
[1741553280029,0.97707,2047.1,2046.9,3.32314]
[1741553280233,0.00732261,2047.2,2046.9,2.346]
[1741553280432,0.98436261,2047.2,2047.0,0.97707]
[1741553280633,0.97711,2047.1,2046.9,3.32314]
[1741553280836,0.97711,2047.1,2047.0,0.97711]
[1741553281033,0.00732261,2047.2,2046.9,3.32314]
[1741553281334,0.9771,2047.1,2046.9,2.346]
[1741553281534,0.9771,2047.1,2047.0,0.97711]
[1741553281928,0.9771,2047.1,2046.9,2.346]
[1741553281929,0.97711,2047.0,2046.9,2.346]
[1741553282329,0.97715,2047.0,2046.8,3.92619]
[1741553282725,0.65882261,2047.2,2046.7,3.21512261]
[1741553282929,0.97721,2046.8,2046.7,0.00732261]
[1741553285035,0.6212,2047.1,2046.8,0.97717]
[1741553285247,0.65882261,2047.2,2046.7,3.21512261]
[1741553285542,0.65882261,2047.2,2047.1,0.97707]
[1741553285841,0.65882261,2047.2,2047.0,4.18489]
[1741553286040,0.65882261,2047.2,2047.1,0.97707]
[1741553286731,1.63584261,2047.2,2047.1,0.97707]
[1741553286935,0.00732261,2047.2,2047.1,0.97707]
[1741553287131,0.00732261,2047.2,2046.8,1.3206]
[1741553287337,0.00732261,2047.2,2046.7,4.19234261]
[1741553287338,0.97719,2046.9,2046.7,4.19234261]
[1741553287532,3.06361261,2047.2,2046.8,0.97719]
[1741553287736,0.62102261,2047.2,2046.7,3.21512261]
[1741553287936,1.59807261,2047.2,2047.0,0.9771]
[1741553288139,0.62102261,2047.2,2046.7,3.21512261]
[1741553288639,0.62102261,2047.2,2046.8,0.97721]
[1741553288833,0.97714,2047.0,2046.8,0.97721]
[1741553289142,0.62102261,2047.2,2046.9,0.97713]
[1741553289143,0.97707,2047.1,2046.9,0.97713]
[1741553289346,0.62102261,2047.2,2047.0,3.2078]
[1741553289542,0.97707,2047.1,2047.0,3.2078]
[1741553290740,0.97718,2046.9,2046.7,4.19235261]
[1741553290941,0.97721,2046.8,2046.7,0.00732261]
[1741553294938,1.6121,2046.9,2046.7,0.98458261]
[1741553295240,0.97721,2046.8,2046.7,0.61452173]
[1741553295545,0.97721,2046.8,2046.7,0.00732261]
[1741553295841,0.62102261,2047.2,2047.1,0.97707]
[1741553296046,3.2078,2047.6,2047.1,4.0]
[1741553296248,0.97692,2047.4,2047.3,3.2078]
[1741553296646,0.97691,2047.5,2047.3,3.2078]
[1741553296858,0.97692,2047.4,2047.3,3.2078]
[1741553297545,0.97692,2047.4,2047.3,3.8150824]
[1741553298247,0.00482111,2047.6,2047.3,3.8150824]
[1741553298447,0.97687,2047.5,2047.4,0.6072824]
[1741553300452,0.97701,2047.3,2047.1,2.949]
[1741553300953,0.97701,2047.3,2047.2,0.60777041]
[1741553301248,0.00482111,2047.6,2047.0,2.949]
[1741553301451,0.00482111,2047.6,2047.5,4.18467]
[1741553301654,3.2078,2048.2,2048.0,0.97661]
[1741553301840,3.2078,2048.2,2047.8,3.2078]
[1741553302349,0.6606,2048.3,2048.1,0.97659]
[1741553302550,1.2809,2048.7,2048.5,0.97637]
[1741553302752,1.2809,2048.7,2048.4,0.00732261]
[1741553303050,0.9764,2048.5,2048.4,0.00732261]
[1741553303349,4.1842,2048.5,2048.4,0.0025015]
[1741553303550,6.5342,2048.5,2048.4,0.0025015]
[1741553303745,10.5342,2048.5,2048.4,0.0025015]
[1741553304050,10.5342,2048.5,2047.6,3.57583387]
[1741553304051,2.44112,2048.4,2047.6,3.2078]
[1741553304361,5.64921,2048.2,2047.6,3.2078]
[1741553304540,0.97683,2047.6,2047.4,2.352]
[1741553304743,3.2078,2047.9,2047.3,3.2078]
[1741553304946,0.97686,2047.6,2047.3,4.18477]
[1741553305143,0.97687,2047.5,2047.4,0.00732261]
[1741553305854,0.97683,2047.6,2047.4,0.00732261]
[1741553306445,0.00732261,2047.8,2047.4,0.00732261]
[1741553306643,0.97681,2047.7,2047.4,0.98422261]
[1741553306850,0.00732261,2047.8,2047.4,0.00732261]
[1741553307050,0.97684,2047.6,2047.4,0.98424261]
[1741553307255,0.9768,2047.7,2047.4,0.98424261]
[1741553307448,0.97685,2047.6,2047.4,0.98424261]
[1741553307652,0.97683,2047.6,2047.4,0.98423261]
[1741553308157,0.00732261,2047.8,2047.4,0.00732261]
[1741553308761,0.97686,2047.6,2047.4,0.98423261]
[1741553309162,0.97687,2047.5,2047.4,0.00732261]
[1741553309861,0.00732261,2047.8,2047.4,0.00732261]
[1741553310068,0.97687,2047.5,2047.4,0.00732261]
[1741553314569,0.97687,2047.5,2047.4,2.61e-06]
[1741553314864,1.64237,2047.5,2047.4,2.61e-06]
[1741553315861,5.64237,2047.5,2047.4,2.61e-06]
[1741553316466,9.24137,2047.5,2047.4,2.61e-06]
[1741553316664,0.97716,2046.9,2046.8,0.60254669]
[1741553316866,6.52996,2046.9,2046.8,0.60254669]
[1741553317063,6.52996,2046.9,2046.2,0.97748]
[1741553317064,0.9773,2046.6,2046.5,0.60254669]
[1741553317571,3.72885,2046.8,2046.3,0.60254669]
[1741553317763,0.97737,2046.5,2046.3,1.57996669]
[1741553317958,0.97737,2046.5,2046.3,0.6098693]
[1741553318168,0.9774,2046.4,2046.3,0.00732261]
[1741553324770,3.2078,2046.6,2046.3,0.00732261]
[1741553324971,0.97736,2046.5,2046.3,0.98475261]
[1741553325377,3.2078,2046.6,2046.3,0.98475261]
[1741553325378,0.9774,2046.4,2046.3,0.00732261]
[1741553326674,3.3234,2046.4,2046.3,0.00732261]
[1741553327277,7.3234,2046.4,2046.3,2.61e-06]
[1741553327669,3.3234,2046.4,2046.3,2.61e-06]
[1741553329177,7.3234,2046.4,2046.3,2.61e-06]
[1741553330983,3.3234,2046.4,2046.3,2.61e-06]
[1741553331880,7.3234,2046.4,2046.3,2.61e-06]
[1741553332181,3.3234,2046.4,2046.3,2.61e-06]
[1741553333885,7.3234,2046.4,2046.3,2.61e-06]
[1741553334777,6.346,2046.4,2045.5,0.6176]
[1741553334972,3.2078,2045.9,2045.1,3.8203]
[1741553335178,3.2078,2045.6,2045.1,3.8203]
[1741553335682,0.97786,2045.5,2045.3,0.97791]
[1741553335871,2.346,2045.7,2045.1,3.8203]
[1741553336078,0.97784,2045.5,2045.3,0.9779]
[1741553336278,0.97789,2045.4,2045.2,0.98528261]
[1741553336574,0.97785,2045.5,2045.3,0.97791]
[1741553336887,0.97785,2045.5,2045.3,0.9779]
[1741553337083,0.97788,2045.4,2045.3,0.9779]
[1741553337695,0.00732261,2045.6,2045.2,0.00732261]
[1741553337984,0.00732261,2045.6,2045.2,0.98525261]
[1741553338182,0.00732261,2045.6,2045.2,2.45224261]
[1741553338383,3.2078,2045.9,2045.4,3.2078]
[1741553338580,0.97774,2045.7,2045.6,0.97774]
[1741553339286,2.346,2046.1,2045.5,1.3356]
[1741553339473,0.97771,2045.8,2045.7,3.2078]
[1741553340587,0.00732261,2046.0,2045.7,7.2078]
[1741553340784,0.97755,2046.1,2046.0,0.97756]
[1741553341891,0.97755,2046.1,2046.0,4.18536]
[1741553342084,0.00732261,2046.3,2046.1,0.97752]
[1741553342280,0.97753,2046.2,2046.1,0.97752]
[1741553342888,0.97753,2046.2,2046.1,1.57931661]
[1741553343585,0.97753,2046.2,2046.1,0.60179661]
[1741553344983,0.00732261,2046.3,2046.2,0.97749]
[1741553345385,0.00732261,2046.3,2046.2,1.57928661]
[1741553346288,0.97721,2046.8,2046.7,0.97726]
[1741553346484,3.2078,2047.0,2046.7,0.60179661]
[1741553346689,0.97721,2046.8,2046.7,0.60179661]
[1741553348286,5.65062,2047.0,2046.5,0.00732261]
[1741553348482,0.97728,2046.7,2046.5,0.98466261]
[1741553348686,3.2078,2047.0,2046.5,0.00732261]
[1741553348891,0.97726,2046.7,2046.6,0.60436382]
[1741553349296,0.97724,2046.8,2046.6,0.60436382]
[1741553349591,0.97724,2046.8,2046.6,0.9773]
[1741553349786,3.2078,2047.0,2046.5,0.00732261]
[1741553349987,0.97723,2046.8,2046.6,0.97727]
[1741553350185,0.97723,2046.8,2046.7,1.58129038]
[1741553350385,0.97723,2046.8,2046.7,0.60403038]
[1741553351089,0.97726,2046.7,2046.6,1.6403]
[1741553351295,3.2078,2047.0,2046.7,2.44312]
[1741553351494,0.97708,2047.1,2047.0,0.97709]
[1741553351687,0.97708,2047.1,2046.6,3.10616]
[1741553351688,3.2078,2047.4,2046.9,3.2078]
[1741553351888,0.97703,2047.2,2047.0,0.6506]
[1741553352195,3.2078,2047.7,2047.3,0.97693]
[1741553352387,0.97697,2047.3,2047.2,3.2078]
[1741553352688,0.97702,2047.2,2047.1,1.3239]
[1741553353394,0.97702,2047.2,2047.1,1.92625003]
[1741553353894,0.97702,2047.2,2047.1,2.90332003]
[1741553354091,0.97702,2047.2,2047.1,0.60235003]
[1741553354796,3.2078,2047.3,2046.9,3.2078]
[1741553354999,0.97711,2047.0,2046.9,3.2078]
[1741553355695,0.97711,2047.0,2046.8,0.97721]
[1741553356494,0.97721,2046.8,2046.7,0.60235003]
[1741553357092,1.9081,2046.9,2046.5,0.00732261]
[1741553357294,0.9773,2046.6,2046.5,0.00732261]
[1741553358902,0.9773,2046.6,2046.2,1.27565003]
[1741553358903,0.97745,2046.3,2046.2,0.60235003]
[1741553359103,0.97754,2046.1,2046.0,0.60235003]
[1741553359401,0.97769,2045.8,2045.7,3.81015003]
[1741553359804,0.97769,2045.8,2045.7,3.2078]
[1741553360101,5.6517,2046.1,2045.5,0.60967264]
[1741553360102,0.97778,2045.6,2045.5,0.60967264]
[1741553360690,0.97778,2045.6,2045.5,0.00732261]
[1741553362105,2.44458,2045.5,2044.9,0.60235003]
[1741553362398,0.97794,2045.3,2044.9,0.60235003]
[1741553362597,0.978,2045.2,2044.8,0.60235003]
[1741553362806,3.2078,2045.4,2044.8,0.60235003]
[1741553363300,0.97807,2045.0,2044.9,0.00732261]
[1741553363503,5.5528,2045.1,2044.8,0.60235003]
[1741553363699,0.97812,2044.9,2044.8,0.60235003]
[1741553363897,0.97836,2044.4,2044.3,3.81015003]
[1741553364107,0.97836,2044.4,2044.3,0.60235003]
[1741553364304,0.9784,2044.3,2044.2,0.60235003]
[1741553364599,0.9784,2044.3,2043.9,3.60674931]
[1741553364803,0.97846,2044.2,2044.0,0.00732261]
[1741553365205,0.00732261,2044.5,2044.0,0.00732261]
[1741553365504,3.21512261,2044.5,2044.0,0.00732261]
[1741553365701,3.21512261,2044.5,2043.7,0.60235003]
[1741553365702,0.97864,2043.8,2043.7,0.60235003]
[1741553365903,3.2078,2043.8,2043.0,19.03646951]
[1741553366108,0.97898,2043.2,2043.0,19.03646951]
[1741553366406,0.97898,2043.1,2043.0,19.03646951]
[1741553367509,4.18678,2043.1,2043.0,19.03646951]
[1741553368105,4.18678,2043.1,2042.8,0.00734071]
[1741553368106,3.2078,2043.1,2042.8,0.00734071]
[1741553368303,0.00734071,2043.3,2042.9,3.2078]
[1741553368499,0.00734071,2043.3,2043.2,4.18673]
[1741553368704,4.18646,2043.8,2043.2,3.2078]
[1741553368906,0.97869,2043.7,2043.5,3.2078]
[1741553369103,2.44625,2044.1,2043.3,0.6515]
[1741553369305,2.44637,2044.0,2043.2,8.5038]
[1741553369506,0.97888,2043.3,2043.2,8.5038]
[1741553369711,0.97888,2043.3,2043.2,3.2078]
[1741553370706,0.97896,2043.2,2043.0,0.6699]
[1741553371107,0.97898,2043.1,2043.0,0.6699]
[1741553371309,0.97897,2043.2,2043.0,0.6699]
[1741553371497,0.97898,2043.1,2043.0,0.6699]
[1741553371703,0.97895,2043.2,2043.0,0.6699]
[1741553371914,0.97891,2043.3,2043.1,0.97895]
[1741553372206,0.00734071,2043.5,2043.0,0.6699]
[1741553372406,0.00734071,2043.5,2042.9,3.2078]
[1741553372713,0.97907,2042.9,2042.8,2.95634071]
[1741553372903,0.97907,2042.9,2042.8,0.00734071]
[1741553374309,0.97899,2043.1,2042.9,0.97906]
[1741553374509,0.97907,2043.0,2042.8,0.62754071]
[1741553374906,0.97907,2043.0,2042.8,1.60666071]
[1741553375105,0.97907,2042.9,2042.8,0.00734071]
[1741553377012,3.2078,2043.4,2042.8,0.00734071]
[1741553377308,3.2078,2043.4,2043.0,3.2078]
[1741553377609,5.65496,2043.4,2043.0,3.2078]
[1741553377909,0.97898,2043.1,2043.0,3.2078]
[1741553379114,0.97903,2043.0,2042.9,0.6235]
[1741553379511,0.97907,2042.9,2042.8,0.00734071]
[1741553379810,3.2078,2043.4,2042.8,0.00734071]
[1741553380006,0.97894,2043.2,2043.0,0.97898]
[1741553380207,5.65489,2043.4,2042.8,0.00734071]
[1741553380408,0.97907,2042.9,2042.8,0.00734071]
[1741553380804,0.97904,2043.0,2042.8,0.00734071]
[1741553381006,0.97899,2043.1,2043.0,0.97902]
[1741553381306,0.97902,2043.1,2042.9,0.97905]
[1741553381611,3.2078,2043.4,2042.9,3.2078]
[1741553381914,0.9789,2043.3,2043.2,3.2078]
[1741553382216,0.97891,2043.3,2043.1,0.97895]
[1741553382507,0.97903,2043.0,2042.9,4.18686]
[1741553382709,2.44709,2043.4,2042.8,2.35534071]
[1741553382915,0.97907,2042.9,2042.8,2.35534071]
[1741553383111,0.97907,2042.9,2042.8,0.00734071]
[1741553383816,0.97907,2042.9,2042.8,0.98646071]
[1741553384003,0.97907,2042.9,2042.8,0.00734071]
[1741553388410,0.97899,2043.1,2042.9,0.97903]
[1741553389205,0.97899,2043.1,2042.9,4.18684]
[1741553389411,0.00734071,2043.5,2042.9,3.2078]
[1741553389613,0.97883,2043.4,2043.3,0.97886]
[1741553389808,0.97883,2043.4,2043.2,4.18669]
[1741553390006,0.97888,2043.3,2043.2,3.2078]
[1741553390203,0.97888,2043.3,2043.2,4.18673]
[1741553390717,0.00734071,2043.5,2043.4,0.97883]
[1741553390917,0.6142,2044.0,2043.3,0.6574]
[1741553391213,0.97863,2043.9,2043.7,0.97865]
[1741553391411,0.97864,2043.8,2043.6,0.97871]
[1741553391818,0.6142,2044.0,2043.5,3.2078]
[1741553392006,0.97872,2043.7,2043.5,4.18657]
[1741553392209,0.97874,2043.6,2043.5,3.2078]
[1741553392512,0.97871,2043.7,2043.5,4.18656]
[1741553392717,0.98596071,2043.9,2043.7,0.97868]
[1741553393213,0.6639,2044.4,2043.8,4.18644]
[1741553393517,0.97847,2044.2,2044.0,0.97852]
[1741553393819,0.97842,2044.3,2044.1,0.9785]
[1741553394014,0.97849,2044.2,2043.8,5.1554]
[1741553394427,0.98581863,2044.2,2043.8,5.16274071]
[1741553394622,0.98581863,2044.2,2043.9,0.97857]
[1741553394813,0.97851,2044.1,2043.9,0.97857]
[1741553395619,0.98581863,2044.2,2044.0,0.97853]
[1741553395820,0.9785,2044.1,2044.0,0.97853]